bitfinex-derivatives/quotes_BTCF0:USTF0_20241208
["timestamp","ask_amount","ask_price","bid_price","bid_amount"]
[1733663538775,0.41575,100050.0,100040.0,0.00312377]
[1733663538972,0.71575,100050.0,100040.0,0.00312377]
[1733663539165,0.71575,100050.0,100030.0,0.044956]
[1733663539166,0.6708,100050.0,100030.0,0.044956]
[1733663539372,0.6708,100050.0,100020.0,0.40576]
[1733663539373,0.044957,100030.0,100020.0,0.40576]
[1733663539675,0.405757,100030.0,100020.0,0.00312424]
[1733663539976,0.482718,100030.0,100010.0,0.04646373]
[1733663540175,0.482718,100030.0,100010.0,0.04958814]
[1733663540472,0.482718,100030.0,100020.0,5.752e-05]
[1733663540679,0.044957,100030.0,100020.0,0.04501852]
[1733663540874,1.022254,100040.0,100020.0,0.44284289]
[1733663541070,0.2807,100040.0,100030.0,0.044957]
[1733663541270,0.044957,100030.0,100020.0,0.04501852]
[1733663541477,0.044957,100030.0,100020.0,0.05314111]
[1733663541681,0.044957,100030.0,100020.0,0.04814269]
[1733663541982,0.079657,100030.0,100020.0,0.04501852]
[1733663542174,0.080657,100030.0,100020.0,0.05101852]
[1733663542367,0.475457,100030.0,100020.0,0.05101852]
[1733663542769,0.475457,100030.0,100020.0,0.00605752]
[1733663543695,0.475557,100030.0,100020.0,0.00605752]
[1733663544381,0.475557,100030.0,100020.0,0.00918194]
[1733663544579,0.475557,100030.0,100020.0,0.01218194]
[1733663545186,0.475557,100030.0,100020.0,0.00905752]
[1733663545382,0.495557,100030.0,100020.0,0.00905752]
[1733663546775,0.776257,100030.0,100020.0,0.00905752]
[1733663547773,0.406757,100030.0,100020.0,0.00905752]
[1733663547975,0.406757,100030.0,100020.0,0.04385752]
[1733663548179,0.406757,100030.0,100020.0,0.07585752]
[1733663548391,0.406757,100030.0,100020.0,0.078982]
[1733663549579,0.406757,100030.0,100020.0,0.012182]
[1733663549580,0.436757,100030.0,100020.0,0.012182]
[1733663550186,0.436757,100030.0,100020.0,0.00905752]
[1733663550375,0.436757,100030.0,100020.0,0.012182]
[1733663552384,0.436757,100030.0,100020.0,0.01718116]
[1733663552685,0.436757,100030.0,100020.0,0.05118116]
[1733663553385,0.436757,100030.0,100020.0,0.05743004]
[1733663553688,0.45693096,100030.0,100020.0,0.05743004]
[1733663554295,0.45693096,100030.0,100020.0,0.05742994]
[1733663557489,0.57617951,100030.0,100020.0,0.05771187]
[1733663558288,0.57617951,100030.0,100020.0,0.08991187]
[1733663558878,0.19520555,100030.0,100020.0,0.13487287]
[1733663559080,0.11280155,100040.0,100030.0,0.044957]
[1733663559284,0.14982278,100050.0,100030.0,0.42012942]
[1733663559479,0.14982278,100050.0,100040.0,0.076552]
[1733663559480,0.19425077,100050.0,100040.0,0.076552]
[1733663559698,0.044948,100050.0,100040.0,0.09092442]
[1733663560897,0.046948,100050.0,100040.0,0.09092442]
[1733663561285,0.87605458,100060.0,100040.0,0.55167944]
[1733663561286,9.423e-05,100060.0,100040.0,0.55167944]
[1733663561482,9.423e-05,100060.0,100050.0,0.405748]
[1733663561690,0.14930277,100070.0,100060.0,0.044943]
[1733663561891,0.37341183,100080.0,100060.0,0.37517242]
[1733663562088,0.19423877,100080.0,100070.0,0.076539]
[1733663562391,0.19423877,100080.0,100070.0,0.09119395]
[1733663562589,0.21403847,100080.0,100070.0,0.09119395]
[1733663562791,0.21415672,100080.0,100070.0,0.09119395]
[1733663563397,0.06485395,100080.0,100070.0,0.09119395]
[1733663563597,0.07385395,100080.0,100070.0,0.09119395]
[1733663565098,0.43465395,100080.0,100070.0,0.09119395]
[1733663565302,0.44165395,100080.0,100070.0,0.09291142]
[1733663566106,0.08085395,100080.0,100070.0,0.09291142]
[1733663566315,0.44165395,100080.0,100070.0,0.09291142]
[1733663566710,0.08085395,100080.0,100070.0,0.09291142]
[1733663567411,0.08085395,100080.0,100070.0,0.09290801]
[1733663567912,0.01611825,100080.0,100070.0,0.09299544]
[1733663568120,0.18709408,100090.0,100070.0,0.85400302]
[1733663568338,0.00792102,100090.0,100080.0,0.405734]
[1733663568514,0.53997306,100100.0,100090.0,0.04493]
[1733663568711,0.3608,100100.0,100090.0,0.05305354]
[1733663568911,0.3608,100100.0,100090.0,0.05929776]
[1733663569309,0.3608,100100.0,100090.0,0.05305354]
[1733663569714,0.405725,100100.0,100090.0,0.05305354]
[1733663570014,0.405725,100100.0,100090.0,0.05505354]
[1733663571010,0.405725,100100.0,100090.0,0.01012354]
[1733663571212,0.405725,100100.0,100090.0,0.00712444]
[1733663571213,0.715725,100100.0,100090.0,0.00712444]
[1733663571416,0.715725,100100.0,100070.0,8.743e-05]
[1733663571417,0.044934,100080.0,100070.0,8.743e-05]
[1733663571750,0.044934,100080.0,100070.0,0.00508342]
[1733663571751,0.405734,100080.0,100070.0,0.00508342]
[1733663571919,0.405734,100080.0,100070.0,8.743e-05]
[1733663571920,0.415734,100080.0,100070.0,8.743e-05]
[1733663572619,0.415734,100080.0,100070.0,0.00908743]
[1733663573014,1.915734,100080.0,100070.0,0.00908743]
[1733663573823,1.915734,100080.0,100070.0,0.01508743]
[1733663573824,1.905734,100080.0,100070.0,0.01508743]
[1733663574222,1.544934,100080.0,100070.0,0.01508743]
[1733663574430,0.044934,100080.0,100070.0,0.4258224]
[1733663574613,0.044934,100080.0,100070.0,0.0991224]
[1733663575322,0.044934,100080.0,100070.0,0.09412643]
[1733663575515,0.044934,100080.0,100070.0,0.09912297]
[1733663576714,0.044934,100080.0,100070.0,0.10536818]
[1733663577423,0.044934,100080.0,100070.0,0.09912297]
[1733663577624,0.044934,100080.0,100070.0,0.09012297]
[1733663577818,0.044934,100080.0,100070.0,0.09612297]
[1733663579017,0.405734,100080.0,100070.0,0.01708397]
[1733663579623,0.49491709,100080.0,100070.0,0.01208743]
[1733663579822,0.49491709,100080.0,100070.0,0.01008743]
[1733663580022,0.49491709,100080.0,100070.0,0.00208743]
[1733663580230,0.49491709,100080.0,100070.0,0.00508743]
[1733663581030,0.50491709,100080.0,100070.0,0.00508743]
[1733663581220,0.50591709,100080.0,100070.0,8.743e-05]
[1733663581727,0.49591709,100080.0,100070.0,8.743e-05]
[1733663582733,0.50591709,100080.0,100070.0,8.743e-05]
[1733663583121,0.416734,100080.0,100070.0,8.743e-05]
[1733663584120,0.59590706,100080.0,100070.0,8.743e-05]
[1733663587433,0.416734,100080.0,100070.0,8.743e-05]
[1733663588524,0.6264824,100080.0,100070.0,8.743e-05]
[1733663588776,0.86626205,100080.0,100070.0,8.743e-05]
[1733663588925,0.878968,100080.0,100070.0,8.743e-05]
[1733663589522,0.7029196,100080.0,100070.0,8.743e-05]
[1733663590728,0.7029196,100080.0,100070.0,0.00321052]
[1733663591127,0.18040048,100080.0,100070.0,0.05314629]
[1733663591431,0.045934,100080.0,100070.0,0.05314629]
[1733663592266,0.045934,100080.0,100070.0,0.04502643]
[1733663592629,0.045934,100080.0,100070.0,0.05002305]
[1733663592836,0.045934,100080.0,100070.0,0.06014593]
[1733663593033,0.001,100080.0,100070.0,0.42494593]
[1733663593837,0.001,100080.0,100070.0,0.42294593]
[1733663594041,0.29113248,100090.0,100070.0,0.05814593]
[1733663594224,0.25753248,100090.0,100080.0,0.044934]
[1733663594434,0.22432648,100100.0,100080.0,0.4138535]
[1733663594634,0.22432648,100100.0,100090.0,0.43763]
[1733663594936,0.22432648,100100.0,100090.0,0.4457495]
[1733663595536,0.044926,100100.0,100090.0,0.0849495]
[1733663595744,0.044926,100100.0,100090.0,0.45199163]
[1733663595926,9.856e-05,100110.0,100100.0,0.044925]
[1733663596129,9.856e-05,100110.0,100100.0,0.45178663]
[1733663596535,0.08966173,100110.0,100100.0,0.4520689]
[1733663596836,0.08965899,100110.0,100100.0,0.55168174]
[1733663597237,0.09065899,100110.0,100100.0,0.55168174]
[1733663597741,0.00609856,100110.0,100100.0,0.55168174]
[1733663597927,0.00509856,100110.0,100100.0,0.55168174]
[1733663598131,0.09565899,100110.0,100100.0,0.55168174]
[1733663598326,0.09565899,100110.0,100100.0,0.55196326]
[1733663599162,0.09565899,100110.0,100100.0,0.53732011]
[1733663599333,0.09565899,100110.0,100100.0,0.55195919]
[1733663600433,0.05101956,100110.0,100100.0,0.45206408]
[1733663600634,0.14057999,100110.0,100100.0,0.45178258]
[1733663601142,0.14057999,100110.0,100100.0,0.42008258]
[1733663601339,0.14057999,100110.0,100100.0,0.43265059]
[1733663603243,0.17397999,100110.0,100100.0,0.43265059]
[1733663605138,0.17397999,100110.0,100100.0,0.01435758]
[1733663605139,0.59436969,100110.0,100100.0,0.01435758]
[1733663605346,0.61436969,100110.0,100100.0,0.00312121]
[1733663605538,0.79377017,100110.0,100100.0,0.00312121]
[1733663605747,0.79377017,100110.0,100100.0,0.00811646]
[1733663606158,0.65929369,100110.0,100100.0,0.00811733]
[1733663606344,0.65929369,100110.0,100100.0,0.00312205]
[1733663607242,0.65929369,100110.0,100100.0,0.00811733]
[1733663607451,0.65929369,100110.0,100100.0,0.00312205]
[1733663608650,0.93999369,100110.0,100100.0,0.00312205]
[1733663609538,0.91999369,100110.0,100100.0,0.00312205]
[1733663612153,0.92999369,100110.0,100100.0,0.00312205]
[1733663614449,1.10939417,100110.0,100080.0,0.405732]
[1733663614657,0.04493,100090.0,100080.0,0.4200935]
[1733663615353,0.1343322,100090.0,100080.0,0.4200935]
[1733663615553,0.1709322,100090.0,100080.0,0.41384937]
[1733663615753,0.1709322,100090.0,100080.0,0.41684937]
[1733663616153,0.0894022,100090.0,100080.0,0.41384937]
[1733663616355,0.0894022,100100.0,100080.0,0.82300849]
[1733663616654,0.0894022,100100.0,100090.0,0.47783]
[1733663616856,0.0894022,100100.0,100090.0,0.52809142]
[1733663618958,0.0904022,100100.0,100090.0,0.52809142]
[1733663619545,0.20973397,100100.0,100090.0,0.52809142]
[1733663619748,0.0904022,100100.0,100090.0,0.52809142]
[1733663620158,0.0904022,100100.0,100090.0,0.52808968]
[1733663620545,0.0904022,100100.0,100090.0,0.62799477]
[1733663620759,0.0904022,100100.0,100090.0,0.62827669]
[1733663620955,0.0904022,100100.0,100090.0,0.92827669]
[1733663621149,0.001,100100.0,100090.0,1.1663527]
[1733663622252,0.001,100100.0,100090.0,1.77746053]
[1733663622453,0.001,100100.0,100090.0,1.77717868]
[1733663623351,0.001,100100.0,100090.0,1.77710597]
[1733663623548,0.001,100100.0,100090.0,1.53931183]
[1733663624151,0.001,100100.0,100090.0,1.23749775]
[1733663625354,0.001,100100.0,100090.0,1.53893444]
[1733663625558,0.001,100100.0,100090.0,1.53921631]
[1733663630765,0.001,100100.0,100090.0,1.53834708]
[1733663630965,0.001,100100.0,100090.0,1.53862895]
[1733663631352,1e-06,100100.0,100090.0,1.53862895]
[1733663631555,7.6e-07,100120.0,100110.0,0.044921]
[1733663631764,0.11933177,100130.0,100120.0,0.044916]
[1733663631965,0.3022819,100140.0,100130.0,0.044912]
[1733663632160,0.15313177,100140.0,100130.0,0.42007168]
[1733663632667,0.15313177,100140.0,100130.0,0.42017598]
[1733663633397,0.15313177,100140.0,100130.0,0.4058163]
[1733663633567,0.15313177,100140.0,100130.0,0.41517846]
[1733663633762,0.15313177,100140.0,100130.0,0.42017161]
[1733663634367,0.15313177,100140.0,100130.0,0.4058163]
[1733663634570,0.15413177,100140.0,100130.0,0.42017161]
[1733663634768,0.16113177,100140.0,100130.0,0.42117161]
[1733663635267,0.008,100140.0,100130.0,0.52103679]
[1733663635499,0.008,100140.0,100130.0,0.50668148]
[1733663635667,0.008,100140.0,100130.0,0.52103527]
[1733663636791,0.008,100140.0,100130.0,0.51479449]
[1733663636976,0.008,100140.0,100130.0,0.516042]
[1733663637273,0.008,100140.0,100130.0,0.52103428]
[1733663642278,0.008,100140.0,100130.0,0.52103426]
[1733663642679,0.008,100140.0,100130.0,0.52131539]
[1733663646279,0.0444,100140.0,100130.0,0.52131539]
[1733663649278,0.0444,100140.0,100130.0,0.52131559]
[1733663650578,0.0444,100140.0,100130.0,0.16051559]
[1733663650779,0.0444,100140.0,100130.0,0.88211559]
[1733663651480,0.008,100140.0,100130.0,0.88211559]
[1733663652887,0.0443,100140.0,100130.0,0.88211578]
[1733663653492,0.0443,100140.0,100130.0,1.05974725]
[1733663653881,0.450007,100140.0,100130.0,0.06036908]
[1733663654075,0.7184889,100140.0,100120.0,0.37341819]
[1733663654282,0.20104377,100130.0,100120.0,0.41833419]
[1733663654980,0.11933177,100130.0,100120.0,0.41844602]
[1733663655380,0.3874909,100140.0,100130.0,0.044912]
[1733663655591,0.3874909,100140.0,100130.0,0.405712]
[1733663656113,0.3864909,100140.0,100130.0,0.405712]
[1733663656282,0.3874909,100140.0,100130.0,0.405712]
[1733663656592,0.3944909,100140.0,100130.0,0.406712]
[1733663658281,0.45455961,100140.0,100130.0,0.406712]
[1733663659594,0.30540948,100140.0,100130.0,0.406712]
[1733663660995,0.30540948,100140.0,100130.0,0.045912]
[1733663661295,0.30540948,100140.0,100130.0,0.406712]
[1733663664093,0.30540948,100140.0,100130.0,0.4117051]
[1733663664891,0.30540948,100140.0,100130.0,0.41794648]
[1733663666098,0.30540948,100140.0,100130.0,0.42106717]
[1733663666397,0.45486342,100140.0,100130.0,0.42106717]
[1733663667095,0.27546294,100140.0,100130.0,0.42106717]
[1733663669003,0.25546294,100140.0,100130.0,0.42106717]
[1733663669400,0.25546294,100140.0,100130.0,0.41482579]
[1733663669900,0.25546294,100140.0,100130.0,0.05402579]
[1733663670301,0.28540948,100140.0,100130.0,0.05402579]
[1733663670607,0.28540948,100140.0,100130.0,0.05402609]
[1733663670801,0.28540948,100140.0,100130.0,0.06026768]
[1733663670999,0.64620948,100140.0,100130.0,0.06026768]
[1733663671190,0.28540948,100140.0,100130.0,0.0602678]
[1733663671390,0.106009,100140.0,100130.0,0.06026773]
[1733663671599,0.33388657,100140.0,100130.0,0.06026773]
[1733663671802,0.106009,100140.0,100130.0,0.06026773]
[1733663672704,0.466809,100140.0,100130.0,0.05402609]
[1733663672901,0.466809,100140.0,100130.0,0.01535576]
[1733663673109,0.67611481,100140.0,100130.0,0.00911409]
[1733663673405,0.91589446,100140.0,100130.0,0.00911409]
[1733663674030,0.70658865,100140.0,100130.0,0.001]
[1733663674206,0.97634076,100140.0,100130.0,0.00412101]
[1733663675103,0.97634076,100140.0,100130.0,0.001]
[1733663675302,0.97634076,100140.0,100130.0,0.00412101]
[1733663675698,0.70658865,100140.0,100130.0,0.00412101]
[1733663676105,0.97634076,100140.0,100130.0,0.00412101]
[1733663676706,0.70658865,100140.0,100130.0,0.00412101]
[1733663677111,0.70658865,100140.0,100130.0,0.04903301]
[1733663677611,0.97634076,100140.0,100130.0,0.045912]
[1733663677809,0.70658865,100140.0,100130.0,0.04903296]
[1733663678710,0.91584479,100140.0,100130.0,0.04903296]
[1733663681153,1.01584479,100140.0,100130.0,0.05402649]
[1733663681311,0.77606514,100140.0,100130.0,0.05402649]
[1733663682216,0.73926514,100140.0,100130.0,0.06026834]
[1733663682527,0.73926514,100140.0,100130.0,0.09806834]
[1733663682820,0.72296514,100140.0,100130.0,0.09806834]
[1733663683013,0.108,100140.0,100130.0,0.09806834]
[1733663683220,0.33601997,100140.0,100130.0,0.09806834]
[1733663683413,0.28748162,100140.0,100130.0,0.09806834]
[1733663684716,0.43708948,100140.0,100130.0,0.73664727]
[1733663687722,0.25760786,100140.0,100130.0,0.73664727]
[1733663688321,0.28748162,100140.0,100130.0,0.5590158]
[1733663688819,0.43699311,100140.0,100130.0,0.5590158]
[1733663689120,0.43699554,100140.0,100130.0,0.5590158]
[1733663691116,0.37708204,100140.0,100130.0,1.03664727]
[1733663692522,0.37708204,100140.0,100130.0,0.8590158]
[1733663693523,0.22756812,100140.0,100130.0,0.8590158]
[1733663693724,0.22756812,100140.0,100130.0,1.03664727]
[1733663694336,0.22756812,100140.0,100130.0,0.8590158]
[1733663694626,0.22756812,100140.0,100130.0,1.03664727]
[1733663695432,0.22756812,100140.0,100130.0,0.73664727]
[1733663695824,0.22756812,100140.0,100130.0,0.5590158]
[1733663696025,0.22756812,100140.0,100130.0,0.73664727]
[1733663696227,0.22756812,100140.0,100130.0,0.55873352]
[1733663696533,0.108,100140.0,100130.0,0.97377959]
[1733663697032,0.108,100140.0,100130.0,0.73137146]
[1733663697351,0.108,100140.0,100130.0,0.95942325]
[1733663697634,0.108,100140.0,100130.0,0.97405715]
[1733663697828,0.108,100140.0,100130.0,0.73664255]
[1733663698023,0.108,100140.0,100130.0,0.97405715]
[1733663698224,0.108,100140.0,100130.0,0.73664255]
[1733663700729,0.108,100140.0,100130.0,0.55901108]
[1733663700921,0.108,100140.0,100130.0,0.73664255]
[1733663701326,0.108,100140.0,100130.0,0.55901108]
[1733663701831,0.108,100140.0,100130.0,0.73664255]
[1733663702033,0.108,100140.0,100130.0,0.55901108]
[1733663703326,0.108,100140.0,100130.0,0.73664255]
[1733663703532,0.22756812,100140.0,100130.0,0.55901108]
[1733663705042,0.22756812,100140.0,100130.0,0.55872984]
[1733663707242,0.37695255,100140.0,100130.0,0.70786576]
[1733663708134,0.25751392,100140.0,100130.0,0.70786576]
[1733663708329,0.25751392,100140.0,100130.0,0.70758452]
[1733663708530,0.25751392,100140.0,100130.0,0.70786576]
[1733663708734,0.25751392,100140.0,100130.0,0.70758452]
[1733663708936,0.25751392,100140.0,100130.0,0.70786576]
[1733663709136,0.25751392,100140.0,100130.0,1.00786576]
[1733663709338,0.22749668,100140.0,100130.0,1.18549734]
[1733663709540,0.00512968,100140.0,100130.0,1.18521581]
[1733663709745,6.8e-07,100140.0,100130.0,1.18521581]
[1733663709931,6.8e-07,100140.0,100130.0,1.42263041]
[1733663711242,6.8e-07,100140.0,100130.0,1.48481214]
[1733663711437,8.697e-05,100150.0,100140.0,0.044907]
[1733663711639,0.14960089,100150.0,100140.0,0.67489084]
[1733663712037,0.14960089,100150.0,100140.0,0.77474604]
[1733663712441,0.14960089,100150.0,100140.0,0.77446437]
[1733663712745,0.14960089,100150.0,100140.0,1.01215942]
[1733663712940,0.15160089,100150.0,100140.0,1.01215942]
[1733663713437,0.15160089,100150.0,100140.0,1.01187773]
[1733663714243,0.15160089,100150.0,100140.0,1.01215949]
[1733663715146,0.15160089,100150.0,100140.0,1.01187773]
[1733663715536,0.15160089,100150.0,100140.0,1.01215951]
[1733663715848,0.15160089,100150.0,100140.0,0.69834491]
[1733663716053,0.36758251,100150.0,100140.0,0.52019522]
[1733663716433,0.26297159,100150.0,100140.0,0.52019522]
[1733663717646,0.26297159,100150.0,100140.0,0.51991344]
[1733663718148,0.26297159,100150.0,100140.0,0.52019522]
[1733663719536,0.26297159,100150.0,100140.0,0.52019695]
[1733663719938,1.09113348,100150.0,100130.0,0.04519086]
[1733663720146,0.5262282,100140.0,100120.0,0.53934338]
[1733663720451,0.27287024,100130.0,100120.0,0.04502683]
[1733663720641,0.61496814,100130.0,100120.0,0.04502683]
[1733663720835,0.25416814,100130.0,100120.0,0.00011183]
[1733663721141,0.044916,100120.0,100110.0,0.04520086]
[1733663721338,0.31129708,100120.0,100110.0,0.044919]
[1733663721538,0.41216492,100120.0,100110.0,0.044919]
[1733663721740,0.26275144,100120.0,100110.0,0.044919]
[1733663721945,0.23273004,100120.0,100110.0,0.044919]
[1733663722144,0.23273004,100120.0,100110.0,0.04499691]
[1733663723154,0.23473004,100120.0,100110.0,0.04499691]
[1733663723446,0.27203004,100120.0,100110.0,0.04499691]
[1733663724446,0.30923004,100120.0,100110.0,0.04499691]
[1733663726243,0.84946548,100120.0,100110.0,0.04499691]
[1733663726648,0.48866548,100120.0,100110.0,0.04499691]
[1733663726852,0.84946548,100120.0,100110.0,0.04499691]
[1733663727351,0.48866548,100120.0,100110.0,0.04499691]
[1733663728044,0.84946548,100120.0,100110.0,0.04499691]
[1733663728750,0.30923004,100120.0,100110.0,0.04499691]
[1733663729055,0.67003004,100120.0,100110.0,0.04499691]
[1733663729647,0.30923004,100120.0,100110.0,0.04499691]
[1733663729852,0.40923004,100120.0,100110.0,0.04499691]
[1733663730957,0.77003004,100120.0,100110.0,0.04499691]
[1733663731955,0.77003004,100120.0,100110.0,0.04811841]
[1733663733658,0.77003004,100120.0,100110.0,0.04499691]
[1733663735857,0.40923004,100120.0,100110.0,0.04499691]
[1733663736058,0.77003004,100120.0,100110.0,0.04499691]
[1733663736753,0.77003004,100120.0,100110.0,7.791e-05]
[1733663737955,0.94946548,100120.0,100110.0,7.791e-05]
[1733663739561,0.58866548,100120.0,100110.0,0.04499891]
[1733663739952,0.40923004,100120.0,100110.0,0.04499891]
[1733663740151,0.40923004,100120.0,100110.0,7.791e-05]
[1733663740349,0.77003004,100120.0,100110.0,7.791e-05]
[1733663741461,0.40923004,100120.0,100110.0,0.04499891]
[1733663743555,0.58866548,100120.0,100110.0,0.0481204]
[1733663744155,0.58866548,100120.0,100110.0,0.4089204]
[1733663744357,0.40923004,100120.0,100110.0,0.0481204]
[1733663744557,0.58866548,100120.0,100110.0,0.0481204]
[1733663745457,0.43925144,100120.0,100110.0,0.4089204]
[1733663746365,0.55112007,100120.0,100110.0,0.41391458]
[1733663747658,0.51272007,100120.0,100110.0,0.41391458]
[1733663748567,0.184116,100120.0,100110.0,0.41391458]
[1733663749457,0.58858044,100120.0,100110.0,0.41391458]
[1733663749658,0.39337214,100120.0,100110.0,0.41391458]
[1733663752667,0.39337214,100120.0,100110.0,0.31391439]
[1733663752969,0.39337214,100120.0,100110.0,0.31391436]
[1733663753167,0.50671155,100120.0,100110.0,0.35883536]
[1733663753363,0.50671155,100120.0,100110.0,0.39453536]
[1733663753364,0.31125614,100120.0,100110.0,0.39453536]
[1733663753674,0.31125614,100120.0,100110.0,0.39460988]
[1733663754370,0.31125614,100120.0,100110.0,0.49449501]
[1733663754567,0.28156205,100120.0,100110.0,0.49477733]
[1733663754762,0.28156205,100120.0,100110.0,0.49449501]
[1733663755271,0.25158971,100120.0,100110.0,0.49449501]
[1733663755476,0.25158971,100120.0,100110.0,0.67292664]
[1733663756376,0.25158971,100120.0,100110.0,0.6726447]
[1733663756577,0.19170053,100120.0,100110.0,0.91034104]
[1733663756973,0.19170053,100120.0,100110.0,0.9100593]
[1733663757488,0.19170053,100120.0,100110.0,0.67292637]
[1733663757679,0.19170053,100120.0,100110.0,0.67292559]
[1733663757977,0.19170053,100120.0,100110.0,0.66765074]
[1733663758167,0.19170053,100120.0,100110.0,0.67292574]
[1733663758370,0.19170053,100120.0,100110.0,0.66793252]
[1733663758570,0.19170053,100120.0,100110.0,0.67888551]
[1733663759472,0.19170053,100120.0,100110.0,0.50073582]
[1733663760379,0.19170053,100120.0,100110.0,0.67888551]
[1733663760579,0.19170053,100120.0,100110.0,0.67916716]
[1733663762083,0.102,100120.0,100110.0,0.67916716]
[1733663762282,0.19160864,100120.0,100110.0,0.67916716]
[1733663763474,0.102,100120.0,100110.0,0.50073582]
[1733663763874,0.102,100120.0,100110.0,0.50073567]
[1733663764579,0.102,100120.0,100110.0,0.50385641]
[1733663764769,0.102,100120.0,100110.0,0.504138]
[1733663765174,0.102,100120.0,100110.0,0.50385641]
[1733663765380,0.102,100120.0,100110.0,0.504138]
[1733663765777,0.25158971,100120.0,100110.0,0.504138]
[1733663765985,0.25158971,100120.0,100110.0,0.52459718]
[1733663766577,0.102,100120.0,100110.0,0.52431559]
[1733663766775,0.102,100120.0,100110.0,0.52459718]
[1733663766776,0.25158971,100120.0,100110.0,0.52459718]
[1733663769581,0.29650571,100120.0,100110.0,0.36855287]
[1733663769778,0.29650571,100120.0,100110.0,0.36827128]
[1733663769779,0.32647805,100120.0,100110.0,0.36827128]
[1733663769987,0.36577805,100120.0,100110.0,0.36827128]
[1733663770581,0.51516416,100120.0,100110.0,0.36827128]
[1733663771485,0.36577805,100120.0,100110.0,0.36827128]
[1733663774198,0.36577805,100120.0,100110.0,0.05935088]
[1733663774401,0.186216,100120.0,100110.0,0.05935088]
[1733663774612,0.186216,100120.0,100110.0,0.00818842]
[1733663774613,1.127716,100120.0,100110.0,0.00818842]
[1733663774796,1.27677357,100120.0,100110.0,0.00818842]
[1733663775105,1.57677327,100120.0,100110.0,0.00818842]
[1733663775406,1.57671798,100120.0,100110.0,0.00319526]
[1733663776706,1.27671798,100120.0,100110.0,0.00319526]
[1733663778003,1.27671798,100120.0,100110.0,0.00319629]
[1733663778404,1.57671798,100120.0,100110.0,0.00319629]
[1733663778701,0.044921,100110.0,100100.0,0.05642637]
[1733663778908,0.38058227,100110.0,100100.0,0.06142124]
[1733663779212,0.17922659,100110.0,100100.0,0.42222124]
[1733663779509,0.27269898,100110.0,100100.0,0.10476449]
[1733663779808,0.22414759,100110.0,100100.0,0.10476449]
[1733663781399,0.22414759,100110.0,100100.0,0.10476408]
[1733663783403,0.22414759,100110.0,100100.0,0.09852091]
[1733663783910,0.22414759,100110.0,100100.0,0.10476411]
[1733663784106,0.22414759,100110.0,100100.0,0.06766411]
[1733663784307,0.22414759,100110.0,100100.0,0.06142091]
[1733663784502,0.22414759,100110.0,100100.0,0.05642637]
[1733663784811,0.22414759,100110.0,100100.0,0.061421]
[1733663785009,0.22414759,100110.0,100100.0,0.06142097]
[1733663785209,0.37343012,100110.0,100100.0,0.06766412]
[1733663785811,0.19420353,100110.0,100100.0,0.06766412]
[1733663788115,0.19420353,100110.0,100100.0,0.06142097]
[1733663788612,0.19420353,100110.0,100100.0,0.06142091]
[1733663790624,0.19420353,100110.0,100100.0,0.06454258]
[1733663791215,0.23170353,100110.0,100100.0,0.06454258]
[1733663791418,0.59250353,100110.0,100100.0,0.01961758]
[1733663791615,0.62244759,100110.0,100100.0,0.06454258]
[1733663792510,0.26164759,100110.0,100100.0,0.06454258]
[1733663793108,0.22414759,100110.0,100100.0,0.06454258]
[1733663796619,0.22414759,100110.0,100100.0,0.07078599]
[1733663797013,0.17922659,100110.0,100100.0,0.5314811]
[1733663797318,0.32867243,100110.0,100100.0,0.57108039]
[1733663797621,0.32867243,100110.0,100100.0,0.60956219]
[1733663798311,0.14944584,100110.0,100100.0,0.64606219]
[1733663799417,0.32867243,100110.0,100100.0,0.82421188]
[1733663799715,0.26911287,100110.0,100100.0,0.82393008]
[1733663799914,0.26911287,100110.0,100100.0,1.06134468]
[1733663800722,0.26911287,100110.0,100100.0,0.82393008]
[1733663800723,0.14944584,100110.0,100100.0,0.82393008]
[1733663801714,0.14944584,100110.0,100100.0,0.82421183]
[1733663803531,0.14944584,100110.0,100100.0,0.64606214]
[1733663805422,0.14944584,100110.0,100100.0,1.00686214]
[1733663806623,0.14944584,100110.0,100100.0,1.0068606]
[1733663807327,0.32867243,100110.0,100100.0,1.0068606]
[1733663808828,0.26906313,100110.0,100100.0,1.18501029]
[1733663812631,0.26906313,100110.0,100100.0,1.12993529]
[1733663813036,0.26906313,100110.0,100100.0,0.40833529]
[1733663813216,0.26906313,100110.0,100100.0,1.12993529]
[1733663815731,0.14944584,100110.0,100100.0,0.9517856]
[1733663816124,0.14944584,100110.0,100100.0,0.9262886]
[1733663816628,0.19436684,100110.0,100100.0,0.8880886]
[1733663816827,0.22414759,100110.0,100100.0,0.07056712]
[1733663817021,0.22414759,100110.0,100100.0,0.07028543]
[1733663817222,0.044921,100110.0,100100.0,0.07028543]
[1733663817428,0.63371122,100110.0,100100.0,0.01435743]
[1733663817733,0.85460708,100110.0,100100.0,0.00811507]
[1733663818123,0.85460708,100110.0,100100.0,0.05304007]
[1733663819024,1.13530708,100110.0,100100.0,0.044925]
[1733663819228,1.13530708,100110.0,100100.0,0.04991995]
[1733663819538,1.13530708,100110.0,100100.0,0.05304179]
[1733663820224,0.09188321,100100.0,100090.0,0.04493]
[1733663820431,0.39622698,100100.0,100090.0,0.41197369]
[1733663820625,0.34767136,100100.0,100090.0,0.41197369]
[1733663820928,0.34767136,100100.0,100090.0,0.40573]
[1733663821128,0.34767136,100100.0,100090.0,0.41197369]
[1733663821630,0.34767136,100100.0,100090.0,0.41597369]
[1733663822130,0.34767136,100100.0,100090.0,0.41797369]
[1733663823731,0.49710949,100100.0,100090.0,0.41797369]
[1733663825330,0.59710949,100100.0,100090.0,0.41797369]
[1733663827748,0.63540949,100100.0,100090.0,0.41797369]
[1733663828433,0.45602134,100100.0,100090.0,0.41797369]
[1733663828849,0.63540949,100100.0,100090.0,0.31797369]
[1733663829025,0.84677136,100100.0,100090.0,0.01224369]
[1733663829240,2.34677136,100100.0,100090.0,0.006]
[1733663829534,2.16738321,100100.0,100090.0,0.006]
[1733663830129,2.16738321,100100.0,100090.0,0.01099541]
[1733663832236,2.34659696,100100.0,100090.0,0.01411754]
[1733663832841,0.32617196,100100.0,100090.0,0.41984754]
[1733663833027,0.29630435,100100.0,100090.0,0.60439644]
[1733663833226,0.20643104,100100.0,100090.0,1.08282819]
[1733663833631,0.29603194,100100.0,100090.0,1.08282819]
[1733663833936,0.17655911,100100.0,100090.0,1.08282819]
[1733663834242,0.08695821,100100.0,100090.0,1.1420931]
[1733663836935,0.08695821,100100.0,100090.0,1.31952914]
[1733663837436,0.08695821,100100.0,100090.0,0.84181104]
[1733663837437,0.17655911,100100.0,100090.0,0.84181104]
[1733663838344,0.17655911,100100.0,100090.0,0.84180702]
[1733663838854,0.17655911,100100.0,100090.0,0.82744969]
[1733663839248,0.17655911,100100.0,100090.0,0.83821061]
[1733663840838,0.02373874,100110.0,100090.0,1.29363659]
[1733663841042,0.24934614,100120.0,100100.0,0.62305707]